bitfinex/quotes_ETHUSD_20250518
["timestamp","ask_amount","ask_price","bid_price","bid_amount"]
[1747560207102,3.97235633,2517.4,2517.1,0.37840251]
[1747560207279,3.97235633,2517.4,2517.2,0.37840251]
[1747560207478,3.97245151,2517.4,2517.2,0.37840251]
[1747560207686,3.97251022,2517.3,2517.2,0.37840251]
[1747560207886,3.97243653,2517.4,2517.2,0.37840251]
[1747560208092,3.97251022,2517.3,2517.2,0.37840251]
[1747560209205,4.79343269,2517.4,2517.2,0.37840251]
[1747560209412,3.97251022,2517.3,2517.2,0.37840251]
[1747560209813,18.88951022,2517.3,2517.2,0.37840251]
[1747560210825,3.97266804,2517.2,2517.1,0.37840251]
[1747560211005,7.55922914,2517.2,2517.1,0.37840251]
[1747560212614,3.97298371,2517.0,2516.9,0.37840251]
[1747560213389,3.9734573,2516.7,2516.6,0.37840251]
[1747560213602,11.4234573,2516.7,2516.6,0.37840251]
[1747560214411,23.6824573,2516.7,2516.6,0.37840251]
[1747560214580,27.19443589,2516.7,2516.6,0.37840251]
[1747560215740,27.19443589,2516.7,2516.3,0.47144072]
[1747560215741,3.97393101,2516.4,2516.3,0.47144072]
[1747560217439,3.97393101,2516.4,2516.0,0.37840251]
[1747560217646,7.481,2516.3,2516.0,0.37840251]
[1747560217938,7.452,2516.4,2516.1,3.97431222]
[1747560218103,7.452,2516.4,2516.2,5.18271557]
[1747560218304,7.452,2516.4,2516.2,1.20847147]
[1747560218504,11.438,2516.7,2516.4,3.97379334]
[1747560218766,7.452,2516.6,2516.3,3.9739596]
[1747560218941,11.438,2516.7,2516.4,4.74702471]
[1747560219116,18.89,2516.7,2516.5,4.44837373]
[1747560219317,11.438,2516.7,2516.5,4.44840429]
[1747560219538,11.438,2516.7,2516.6,4.74681519]
[1747560219743,7.452,2516.8,2516.6,4.74681519]
[1747560220128,7.452,2516.9,2516.8,3.97322958]
[1747560220444,7.452,2517.0,2516.9,0.7732]
[1747560221688,15.4112977,2517.5,2517.0,3.97297264]
[1747560221808,7.452,2517.2,2517.0,3.97297264]
[1747560222010,7.452,2517.2,2517.1,3.97282587]
[1747560222314,11.439,2517.5,2517.1,4.88257961]
[1747560222527,7.452,2517.4,2517.1,0.90975374]
[1747560222726,7.452,2517.4,2517.0,3.97290003]
[1747560222933,11.439,2517.5,2517.1,3.97281662]
[1747560223255,7.451,2517.3,2517.1,0.37840251]
[1747560224154,3.97266804,2517.2,2517.1,0.37840251]
[1747560225349,4.80146804,2517.2,2517.1,0.37840251]
[1747560225562,6.42396854,2517.2,2517.1,0.37840251]
[1747560225735,14.42396854,2517.2,2517.1,0.37840251]
[1747560226764,3.97351421,2516.7,2516.3,0.37840251]
[1747560226954,7.452,2516.6,2516.3,0.37840251]
[1747560227817,7.452,2516.6,2516.3,4.35246629]
[1747560228022,7.452,2516.6,2516.4,4.35232797]
[1747560228547,3.97322584,2516.9,2516.4,4.35232797]
[1747560228767,18.92430396,2516.8,2516.4,4.35232797]
[1747560229051,0.8288,2517.2,2516.6,3.97353889]
[1747560229368,3.97322652,2516.9,2516.5,0.8303]
[1747560229719,7.452,2516.8,2516.7,0.37840251]
[1747560230767,7.452,2516.8,2516.6,0.37840251]
[1747560232473,0.7752,2516.8,2516.7,0.37840251]
[1747560232676,4.74849942,2516.8,2516.7,0.37840251]
[1747560233242,19.71949942,2516.8,2516.7,0.37840251]
[1747560233798,3.97361519,2516.6,2516.5,0.47144072]
[1747560234153,19.01761519,2516.6,2516.5,0.47144072]
[1747560234724,11.49661519,2516.6,2516.5,0.47144072]
[1747560235467,3.97393101,2516.4,2516.3,0.37840251]
[1747560236063,4.74913101,2516.4,2516.3,0.37840251]
[1747560236443,3.97393101,2516.4,2516.3,0.37840251]
[1747560236639,19.02893101,2516.4,2516.3,0.37840251]
[1747560236842,3.97415479,2516.3,2516.1,0.47144072]
[1747560237163,7.523,2516.2,2516.1,0.47144072]
[1747560237542,11.49724688,2516.2,2516.1,0.47144072]
[1747560237869,7.523,2516.2,2516.1,0.47144072]
[1747560238262,11.49724688,2516.2,2516.1,0.47144072]
[1747560238427,11.49724688,2516.2,2516.1,0.37840251]
[1747560239169,7.523,2516.2,2516.1,0.37840251]
[1747560239669,7.523,2516.2,2516.0,0.37840251]
[1747560240530,3.97440483,2516.1,2516.0,0.37840251]
[1747560240931,3.97456279,2516.0,2515.9,0.47144072]
[1747560244446,3.97488762,2515.8,2515.5,0.37966605]
[1747560244761,7.524,2515.7,2515.5,4.35492266]
[1747560245678,7.524,2515.7,2515.5,0.37966605]
[1747560246035,7.524,2515.7,2515.6,0.37966605]
[1747560248069,11.49903676,2515.7,2515.6,0.37966605]
[1747560249270,7.524,2515.7,2515.6,0.37966605]
[1747560250172,3.97467035,2516.0,2515.6,0.37966605]
[1747560250333,19.0157398,2515.9,2515.6,0.37966605]
[1747560250537,3.9746313,2516.0,2515.4,4.80527225]
[1747560250753,15.043,2515.9,2515.5,3.97527315]
[1747560250968,4.74963662,2516.1,2515.5,3.97535281]
[1747560251144,7.525,2516.0,2515.6,0.7955]
[1747560251360,7.525,2516.0,2515.6,4.77061142]
[1747560251874,7.525,2516.0,2515.7,0.37907492]
[1747560252170,11.49957358,2516.0,2515.7,0.37907492]
[1747560252946,3.97482615,2515.9,2515.7,0.37907492]
[1747560253151,3.97482615,2515.9,2515.8,0.37907492]
[1747560253892,7.525,2516.0,2515.8,0.37907492]
[1747560254044,3.97433858,2516.2,2515.8,0.37907492]
[1747560254246,15.053,2516.1,2515.8,0.37907492]
[1747560254781,19.02742986,2516.1,2515.8,0.37907492]
[1747560255289,15.053,2516.1,2515.8,0.37907492]
[1747560255449,7.525,2516.0,2515.8,0.37907492]
[1747560255785,11.49960765,2516.0,2515.8,0.37907492]
[1747560256486,7.525,2516.0,2515.8,0.37907492]
[1747560257183,7.525,2515.9,2515.8,0.37907492]
[1747560259688,11.49840539,2516.1,2515.8,0.37907492]
[1747560259689,0.808,2516.3,2515.8,0.37907492]
[1747560259991,7.525,2516.0,2515.9,0.7673]
[1747560260897,7.525,2516.0,2515.7,0.7673]
[1747560261697,7.525,2516.0,2515.8,0.37907492]
[1747560263100,7.525,2516.0,2515.9,0.37907492]
[1747560265792,11.441,2516.4,2515.9,0.37907492]
[1747560265793,10.05,2517.3,2516.0,3.97456279]
[1747560266103,7.506,2516.4,2516.1,4.79559073]
[1747560266324,0.7651,2516.8,2516.1,0.8213]
[1747560266637,7.506,2516.7,2516.3,3.97408894]
[1747560266778,7.506,2516.7,2516.3,4.45362783]
[1747560267287,7.506,2516.7,2516.4,3.97386328]
[1747560267488,7.506,2516.7,2516.5,0.37907492]
[1747560267894,11.47954253,2516.7,2516.5,0.37907492]
[1747560268610,7.506,2516.7,2516.5,0.37907492]
[1747560269188,7.505,2516.7,2516.6,0.37907492]
[1747560271996,11.4784573,2516.7,2516.6,0.37907492]
[1747560272192,7.505,2516.7,2516.6,0.37907492]
[1747560272396,11.4784573,2516.7,2516.6,0.37907492]
[1747560273151,14.53954103,2516.7,2516.6,0.37907492]
[1747560273997,3.97389059,2516.5,2516.3,0.47144072]
[1747560274445,3.97393101,2516.4,2516.3,0.47144072]
[1747560275738,3.97393101,2516.4,2516.2,0.37907492]
[1747560275918,3.97378462,2516.5,2516.2,0.37907492]
[1747560276235,3.97391934,2516.5,2516.2,0.37907492]
[1747560276434,3.9740045,2516.4,2516.2,0.37907492]
[1747560276593,3.97378223,2516.5,2516.2,0.37907492]
[1747560276934,10.56608373,2516.7,2516.2,0.37907492]
[1747560277236,3.97393101,2516.4,2516.3,0.37907492]
[1747560279051,3.97393101,2516.4,2516.1,0.37907492]
[1747560279481,7.505,2516.4,2516.1,0.94372185]
[1747560279626,11.47893224,2516.4,2516.1,0.94372185]
[1747560279827,11.47893224,2516.4,2516.1,0.37907492]
[1747560280471,11.47893224,2516.4,2516.2,0.37907492]
[1747560280827,3.97408894,2516.3,2516.2,0.37907492]
[1747560281556,3.97408894,2516.3,2515.8,1.39976942]
[1747560281557,3.97424688,2516.2,2516.1,0.37907492]
[1747560283686,3.97424688,2516.2,2515.9,0.37907492]
[1747560283984,3.97456279,2516.0,2515.9,0.37907492]
[1747560284916,0.7911,2516.1,2515.9,0.37907492]
[1747560285212,3.97456279,2516.0,2515.9,0.37907492]
[1747560285718,4.76557248,2516.1,2515.9,0.37907492]
[1747560286083,3.97456279,2516.0,2515.9,0.37907492]
[1747560287399,3.97456279,2516.0,2515.7,0.37907492]
[1747560287708,7.505,2515.9,2515.7,0.37907492]
[1747560288820,7.505,2515.9,2515.7,0.93676825]
[1747560289000,7.505,2515.9,2515.7,4.91176853]
[1747560289500,7.505,2515.9,2515.8,0.37907492]
[1747560297315,11.47972077,2515.9,2515.8,0.37907492]
[1747560297514,7.505,2515.9,2515.8,0.37907492]
[1747560298027,11.47972077,2515.9,2515.8,0.37907492]
[1747560300814,7.505,2515.9,2515.8,0.37907492]
[1747560301933,11.47972077,2515.9,2515.8,0.37907492]
[1747560302718,7.505,2515.9,2515.8,0.37907492]
[1747560303107,7.469,2516.0,2515.8,0.37907492]
[1747560303290,7.469,2516.0,2515.8,0.93673435]
[1747560304220,7.469,2516.2,2515.9,0.8053]
[1747560304380,11.44329171,2516.2,2515.9,0.8053]
[1747560304717,11.4432947,2516.2,2515.9,0.8053]
[1747560304880,3.97400535,2516.4,2515.9,4.77995128]
[1747560305086,3.97386613,2516.5,2516.0,4.35360814]
[1747560305411,7.469,2516.4,2516.0,4.35360814]
[1747560305618,7.469,2516.4,2516.0,0.37907492]
[1747560305820,7.469,2516.4,2516.1,4.779685]
[1747560306004,7.469,2516.4,2516.1,5.15875992]
[1747560306209,7.469,2516.4,2516.1,1.18437492]
[1747560307024,7.469,2516.4,2516.1,5.1587751]
[1747560307226,7.469,2516.4,2516.1,1.18437492]
[1747560307402,7.469,2516.4,2516.1,5.15870007]
[1747560307602,7.469,2516.4,2516.1,1.18437492]
[1747560307994,11.44296226,2516.4,2516.2,0.37907492]
[1747560308527,7.469,2516.4,2516.2,0.37907492]
[1747560309362,7.469,2516.4,2516.3,0.37907492]
[1747560311729,7.469,2516.4,2516.3,4.91616198]
[1747560312145,11.443,2516.6,2516.4,0.7721]
[1747560312341,11.44231426,2516.8,2516.5,0.37907492]
[1747560313158,3.9734573,2516.7,2516.5,0.37907492]
[1747560314270,3.9734573,2516.7,2516.6,0.37907492]
[1747560315377,11.44239171,2516.8,2516.6,0.37907492]
[1747560315874,11.44239171,2516.8,2516.3,4.44548463]
[1747560315875,3.97361519,2516.6,2516.5,0.37907492]
[1747560316965,3.97353807,2516.7,2516.5,0.37907492]
[1747560317368,3.97251109,2517.3,2516.9,3.97313248]
[1747560317543,7.468,2517.4,2517.0,4.75833858]
[1747560317738,7.468,2517.4,2517.0,0.82512947]
[1747560318052,7.468,2517.4,2517.0,0.7854]
[1747560318483,11.4403776,2517.4,2517.0,0.7854]
[1747560318773,11.4404263,2517.4,2517.1,0.37907492]
[1747560320285,11.4404263,2517.4,2517.2,0.37907492]
[1747560320490,3.9724263,2517.4,2517.2,0.37907492]
[1747560321889,3.9724263,2517.4,2517.1,0.37907492]
[1747560322186,3.9724263,2517.4,2517.1,1.04895123]
[1747560322756,3.97227487,2517.5,2517.1,1.04895123]
[1747560323108,3.97266804,2517.2,2517.1,0.37907492]
[1747560323264,11.43866804,2517.2,2517.1,0.37907492]
[1747560323471,3.97298371,2517.0,2516.8,0.47144072]
[1747560323659,3.97314156,2516.9,2516.8,0.47144072]
[1747560325803,3.97332108,2516.8,2516.5,0.8182]
[1747560326106,3.97321952,2516.9,2516.5,0.8182]
[1747560326299,3.9730647,2517.0,2516.5,5.7064678]
[1747560326809,3.97320282,2516.9,2516.5,1.73271496]
[1747560327105,3.97320282,2516.9,2516.6,0.37902765]
[1747560328977,3.97306543,2517.0,2516.6,0.37902765]
[1747560331801,7.466,2517.2,2516.9,3.97310433]
[1747560332002,3.97243751,2517.4,2516.9,3.97310433]
[1747560332183,11.45322744,2517.5,2517.0,0.7548]
[1747560332379,7.481,2517.5,2517.1,4.35184228]
[1747560332700,11.45321817,2517.5,2517.1,4.35184228]
[1747560332897,11.45324591,2517.5,2517.1,0.37902765]
[1747560333110,3.97252117,2517.3,2517.1,0.37902765]
[1747560333475,3.97242055,2517.4,2517.1,0.88971635]
[1747560333682,11.45327225,2517.5,2517.1,0.88971635]
[1747560334105,3.97236989,2517.4,2517.2,0.37902765]
[1747560336029,11.45327622,2517.5,2517.2,0.37902765]
[1747560337123,3.97237449,2517.4,2517.2,0.37902765]
[1747560338998,3.97251022,2517.3,2517.2,0.37902765]
[1747560339696,3.97251022,2517.3,2517.1,0.37902765]
[1747560340442,3.97266804,2517.2,2517.1,0.37902765]
[1747560341496,3.97266804,2517.2,2517.0,0.37902765]
[1747560341729,3.97282587,2517.1,2517.0,0.37902765]
[1747560348868,3.97271981,2517.2,2517.0,0.37902765]
[1747560349071,3.97243293,2517.4,2517.0,1.14022765]
[1747560349240,7.481,2517.5,2517.2,3.97256728]
[1747560349437,7.481,2517.5,2517.3,4.73360306]
[1747560350073,7.481,2517.5,2517.3,0.7612]
[1747560350862,7.481,2517.5,2517.4,0.37902765]
[1747560351484,11.45319463,2517.5,2517.4,0.37902765]
[1747560355144,12.25849463,2517.5,2517.4,0.37902765]
[1747560355344,13.88155547,2517.5,2517.4,0.37902765]
[1747560355545,3.97251022,2517.3,2517.2,0.37902765]
[1747560360288,3.97243616,2517.4,2517.2,0.37902765]
[1747560360988,3.97248008,2517.4,2517.2,1.18742765]
[1747560361291,3.97248008,2517.4,2517.2,0.37902765]
[1747560361494,3.97248008,2517.4,2517.3,0.37902765]
[1747560361816,5.40889473,2517.4,2517.3,0.37902765]
[1747560361988,6.18739473,2517.4,2517.3,0.37902765]
[1747560364619,4.75098008,2517.4,2517.3,0.37902765]
[1747560364989,3.97226566,2517.5,2517.3,0.37902765]
[1747560365207,7.458,2517.5,2517.3,0.37902765]
[1747560365883,7.458,2517.5,2517.4,0.37902765]
[1747560366082,11.43019463,2517.5,2517.4,0.37902765]
[1747560367487,14.49321778,2517.5,2517.4,0.37902765]
[1747560368992,3.97251022,2517.3,2517.2,0.37902765]
[1747560369621,4.74211022,2517.3,2517.2,0.37902765]
[1747560370134,3.97298371,2517.0,2516.5,0.7902]
[1747560370432,3.9731773,2516.9,2516.6,0.85699685]
[1747560370651,0.7696,2517.3,2516.7,0.7902]
[1747560370812,3.97220179,2517.5,2516.9,3.97306936]
[1747560371006,3.97251637,2517.3,2517.0,0.7902]
[1747560371205,3.97251637,2517.3,2517.0,1.26654163]
[1747560372132,3.97280571,2517.2,2517.0,0.7902]
[1747560372338,3.97278759,2517.2,2517.0,0.7902]
[1747560372704,3.97278759,2517.2,2517.1,0.3805932]
[1747560373049,3.9725942,2517.3,2517.1,0.3805932]
[1747560373201,11.43041694,2517.4,2517.1,0.3805932]
[1747560373605,7.458,2517.4,2517.1,0.94255125]
[1747560373939,7.458,2517.6,2517.3,0.8245]
[1747560374102,7.458,2517.7,2517.3,4.79694173]
[1747560374302,3.97165074,2517.9,2517.4,0.8245]
[1747560374512,3.97174293,2517.8,2517.4,0.8245]
[1747560374939,11.4294197,2518.0,2517.4,0.8245]
[1747560375136,3.97173094,2517.8,2517.5,0.3805932]
[1747560375348,3.97190775,2517.7,2517.5,0.3805932]
[1747560375703,3.97173094,2517.8,2517.5,0.3805932]
[1747560375704,3.97180392,2517.8,2517.5,0.3805932]
[1747560375952,3.97203686,2517.6,2517.5,0.3805932]
[1747560376419,5.5472312,2517.6,2517.5,0.3805932]
[1747560377543,4.73695242,2517.4,2517.3,0.47568153]
[1747560377744,20.19395242,2517.4,2517.3,0.47568153]
[1747560378954,3.97266804,2517.2,2517.1,7.04545455]
[1747560379129,11.46666804,2517.2,2517.1,7.04545455]
[1747560382548,12.27316804,2517.2,2517.1,7.04545455]
[1747560383480,20.27316804,2517.2,2517.1,7.04545455]
[1747560383766,20.82316804,2517.2,2517.1,7.04545455]
[1747560384061,24.34889505,2517.2,2517.1,7.04545455]
[1747560417735,16.04839505,2517.2,2517.1,7.04545455]
[1747560417931,23.49439505,2517.2,2517.1,7.04545455]
[1747560418520,18.91666804,2517.2,2517.1,7.04545455]
[1747560419333,11.47066804,2517.2,2517.1,7.04545455]
[1747560419524,18.91666804,2517.2,2517.1,7.04545455]
[1747560420313,11.47066804,2517.2,2517.1,7.04545455]
[1747560420509,3.97266804,2517.2,2517.1,7.87395455]
[1747560420740,11.41866804,2517.2,2517.1,7.87395455]
[1747560421040,11.41866804,2517.2,2517.1,8.66135001]
[1747560421896,11.41866804,2517.2,2517.1,9.04195006]
[1747560422646,7.446,2517.2,2517.1,9.04195006]
[1747560424242,11.41866804,2517.2,2517.1,9.04195006]
[1747560425599,7.446,2517.2,2517.1,9.04195006]
[1747560426020,3.97234816,2517.5,2517.2,0.8285]
[1747560426343,3.97234816,2517.5,2517.4,0.8285]
[1747560427899,11.41712506,2517.6,2517.4,0.8285]
[1747560428515,7.445,2517.6,2517.4,0.8285]
[1747560428716,3.9719513,2517.7,2517.4,0.8285]
[1747560429049,3.97204277,2517.6,2517.4,0.8285]
[1747560429618,14.89,2518.0,2517.4,0.8285]
[1747560429819,3.97219463,2517.5,2517.4,0.8285]
[1747560431076,3.97211713,2517.6,2517.4,0.8285]
[1747560434032,3.97157378,2517.9,2517.4,0.8285]
[1747560434235,11.41647165,2518.0,2517.6,0.7569]
[1747560434444,3.97172651,2517.8,2517.6,0.7569]
[1747560434667,3.97166482,2517.9,2517.6,0.7569]
[1747560434864,3.97173221,2517.8,2517.6,0.7569]
[1747560436059,3.97184971,2517.8,2517.6,0.7569]
[1747560436265,3.97187909,2517.7,2517.6,0.7569]
[1747560437071,3.97179836,2517.8,2517.6,0.7569]
[1747560437627,3.97187909,2517.7,2517.6,0.7569]
[1747560438761,3.97178488,2517.8,2517.6,0.7569]
[1747560442792,3.97168504,2517.9,2517.6,0.7569]
[1747560443859,3.97168504,2517.9,2517.7,0.47290928]
[1747560444072,3.97168504,2517.9,2517.6,0.7569]
[1747560444689,11.41654477,2518.0,2517.6,0.7569]
[1747560445115,3.97159958,2517.9,2517.6,0.7569]
[1747560446225,3.97172774,2517.8,2517.6,0.7569]
[1747560446721,3.97172774,2517.8,2517.7,0.37927276]
[1747560448231,4.38478806,2517.8,2517.7,0.37927276]
[1747560450888,3.97219463,2517.5,2517.4,0.8289]
[1747560452803,3.97219463,2517.5,2517.4,1.20916014]
[1747560453824,3.97219463,2517.5,2517.4,0.38026014]
[1747560459239,0.7765,2517.9,2517.4,0.38026014]
[1747560459445,3.97212026,2517.6,2517.4,0.38026014]
[1747560459658,3.97212026,2517.6,2517.5,0.8212]
[1747560460333,3.97212026,2517.6,2517.5,1.20146014]
[1747560460658,10.8254,2518.4,2517.6,0.8212]
[1747560460823,3.97151101,2518.0,2517.6,0.8212]
[1747560461022,3.97151101,2518.0,2517.6,1.33856203]
[1747560461242,3.97151101,2518.0,2517.7,0.8212]
[1747560461644,3.97158291,2517.9,2517.7,0.8212]
[1747560461857,3.97158291,2517.9,2517.8,0.38026014]
[1747560462820,4.73495977,2518.6,2517.8,0.38026014]
[1747560463131,3.97131815,2518.1,2517.9,1.15836014]
[1747560463733,3.97140587,2518.0,2517.9,1.15836014]
[1747560464120,3.97140587,2518.0,2517.9,0.38026014]
[1747560469478,12.20430587,2518.0,2517.9,0.38026014]
[1747560471241,3.97172134,2517.8,2517.7,0.38026014]
[1747560472580,3.97172134,2517.8,2517.7,1.17776014]
[1747560473935,3.97164072,2517.9,2517.7,1.17776014]
[1747560474765,3.97172134,2517.8,2517.7,1.17776014]
[1747560476068,3.97165706,2517.9,2517.7,1.17776014]
[1747560476571,3.97165706,2517.9,2517.7,0.38026014]
[1747560476572,3.97172134,2517.8,2517.7,0.38026014]
[1747560478377,5.58901918,2517.8,2517.7,0.38026014]
[1747560478563,13.02801918,2517.8,2517.7,0.38026014]
[1747560478946,13.02801918,2517.8,2517.5,0.47568153]
[1747560478947,3.97203686,2517.6,2517.5,0.47568153]
[1747560480589,3.97203686,2517.6,2517.1,7.84855455]
[1747560480590,3.97237213,2517.4,2517.1,8.32423608]
[1747560480888,11.41072134,2517.8,2517.2,0.8031]
[1747560480889,3.97226967,2517.5,2517.2,0.8031]
[1747560481053,3.97226967,2517.5,2517.3,1.22970227]
[1747560481871,3.97226967,2517.5,2517.4,0.38032963]
[1747560483471,3.97209033,2517.6,2517.4,0.38032963]
[1747560484080,3.97199645,2517.7,2517.4,0.38032963]
[1747560484267,3.97181141,2517.8,2517.5,0.7609]
[1747560484469,3.97189283,2517.7,2517.5,0.7609]
[1747560484773,3.9718817,2517.7,2517.5,0.7609]
[1747560484957,3.9718817,2517.7,2517.6,0.38032963]
[1747560485887,7.439,2518.1,2517.6,4.35227773]
[1747560486065,3.97141829,2518.0,2517.7,1.2761896]
[1747560486381,7.439,2518.2,2517.7,1.2761896]
[1747560486678,7.439,2518.2,2517.8,0.38032963]
[1747560487042,3.97140828,2518.0,2517.8,0.38032963]
[1747560487240,3.97140828,2518.0,2517.8,0.94317967]
[1747560487481,3.97140828,2518.0,2517.8,0.38032963]
[1747560487646,3.97140828,2518.0,2517.9,0.38032963]
[1747560489542,4.76790828,2518.0,2517.9,0.38032963]
[1747560490141,12.76790828,2518.0,2517.6,0.47568153]
[1747560490359,3.97187909,2517.7,2517.6,0.47568153]
[1747560490559,19.72289216,2517.7,2517.6,0.47568153]
[1747560492183,3.97219463,2517.5,2517.0,1.29028153]
[1747560492979,3.97252376,2517.3,2517.0,1.29028153]
[1747560493666,3.97252376,2517.3,2517.2,0.38022904]
[1747560496293,4.72422376,2517.3,2517.2,0.38022904]
[1747560496511,5.59388366,2517.3,2517.2,0.38022904]
[1747560496789,3.97266804,2517.2,2516.9,0.47568153]
[1747560496989,18.85066804,2517.2,2516.9,0.47568153]
[1747560497204,11.41266804,2517.2,2516.9,0.47568153]
[1747560497375,11.41260438,2517.3,2517.0,0.7882]
[1747560497574,11.41260438,2517.3,2517.2,0.78336546]
[1747560497913,11.41260438,2517.3,2517.0,0.7882]
[1747560498097,3.97266804,2517.2,2517.0,0.7882]
[1747560499283,3.97266804,2517.2,2516.8,0.47568153]
[1747560499487,3.97266804,2517.2,2516.8,1.26388153]
[1747560499691,3.97266804,2517.2,2517.1,7.42553491]
[1747560500820,3.97266804,2517.2,2517.1,7.04545455]
[1747560503710,4.76826804,2517.2,2517.1,7.04545455]
[1747560503879,7.13014598,2517.2,2517.1,7.04545455]
[1747560506021,3.97266804,2517.2,2517.1,7.04545455]
[1747560511939,3.97263681,2517.3,2517.1,7.85335455]
[1747560513622,3.97266804,2517.2,2517.1,7.85335455]
[1747560514844,3.97266804,2517.2,2517.1,8.2330765]
[1747560518839,3.9726308,2517.3,2517.1,8.2330765]
[1747560519148,3.97266804,2517.2,2517.1,8.2330765]
[1747560519953,3.97266804,2517.2,2517.1,7.4251765]
[1747560522255,3.97266804,2517.2,2517.1,6.8869275]
[1747560524687,3.97261866,2517.3,2517.1,6.8869275]
[1747560524950,11.41140081,2517.4,2517.1,6.8869275]
[1747560525151,3.97252533,2517.3,2517.2,0.37972195]
[1747560525476,3.97252533,2517.3,2517.2,1.14652195]
[1747560526240,3.97252533,2517.3,2517.2,0.37972195]
[1747560527143,5.33231002,2517.3,2517.2,0.37972195]
[1747560528658,4.53661002,2517.3,2517.2,0.37972195]
[1747560532160,3.97266804,2517.2,2517.1,6.50720555]
[1747560534562,3.97266804,2517.2,2517.1,6.88781051]
[1747560536366,3.87266804,2517.2,2517.1,6.88781051]
[1747560536665,5.85473231,2517.2,2517.1,6.88781051]
[1747560537227,6.63733231,2517.2,2517.1,6.88781051]
[1747560537839,6.63733231,2517.2,2517.1,6.50720555]
[1747560541272,14.63733231,2517.2,2517.1,6.50720555]
[1747560546275,26.74866804,2517.2,2517.1,6.50720555]
[1747560547482,19.31066804,2517.2,2517.1,6.50720555]
[1747560547784,19.31066804,2517.2,2517.1,6.88772294]
[1747560547978,11.87266804,2517.2,2517.1,6.88772294]
[1747560550552,11.87266804,2517.2,2517.1,6.50720555]
[1747560550751,14.27924738,2517.2,2517.1,6.50720555]
[1747560556271,11.87266804,2517.2,2517.1,6.50720555]
[1747560560097,26.74766804,2517.2,2517.1,6.50720555]
[1747560563896,11.87266804,2517.2,2517.1,6.50720555]
[1747560564084,19.31066804,2517.2,2517.1,6.50720555]
[1747560564599,19.31066804,2517.2,2517.1,6.88806206]
[1747560570502,22.38258738,2517.2,2517.1,6.88806206]
[1747560571206,22.38258738,2517.2,2517.1,6.50720555]
[1747560573873,14.38258738,2517.2,2517.1,6.50720555]
[1747560576915,11.31066804,2517.2,2517.1,6.50720555]
[1747560577501,3.87266804,2517.2,2517.1,6.50720555]
[1747560577716,3.97266804,2517.2,2517.1,7.27370555]
[1747560578320,3.97266804,2517.2,2517.1,7.6545829]
[1747560584308,11.40741819,2517.4,2517.1,7.6545829]
[1747560584309,3.97258917,2517.3,2517.1,7.6545829]
[1747560584857,7.435,2517.4,2517.1,7.6545829]
[1747560585036,3.97236295,2517.4,2517.3,0.7617]
[1747560587139,3.97236295,2517.4,2517.3,1.14257735]
[1747560591474,3.97236295,2517.4,2517.3,0.38087735]
[1747560601376,4.74926295,2517.4,2517.3,0.38087735]
[1747560601585,5.62141032,2517.4,2517.3,0.38087735]
[1747560601872,13.05241032,2517.4,2517.3,0.38087735]
[1747560602239,3.97266804,2517.2,2517.1,6.50720555]
[1747560603441,3.97266804,2517.2,2517.1,6.88767925]
[1747560603674,0.8303,2517.7,2517.1,6.88767925]
[1747560603881,11.40336877,2517.4,2517.1,7.65737925]
[1747560604079,7.431,2517.4,2517.1,7.65737925]
[1747560604379,11.4034426,2517.4,2517.1,7.65737925]
[1747560604682,3.9724426,2517.4,2517.1,7.65737925]
[1747560605475,3.9724426,2517.4,2517.2,0.3804737]
[1747560605680,3.9724426,2517.4,2517.2,1.59107532]
[1747560606780,11.40298304,2517.7,2517.3,0.3804737]
[1747560606956,11.40298304,2517.7,2517.4,0.7697]
[1747560606957,3.97210578,2517.6,2517.4,0.7697]
[1747560607154,3.97219463,2517.5,2517.4,0.7697]
[1747560607366,3.97235242,2517.4,2517.3,0.3804737]
[1747560608073,4.84344713,2517.4,2517.3,0.3804737]
[1747560609582,3.97266804,2517.2,2517.1,6.98288708]
[1747560611091,3.97266804,2517.2,2517.1,6.88797509]
[1747560611891,3.97266804,2517.2,2517.1,7.08797509]
[1747560616098,12.18266804,2517.2,2517.1,7.08797509]
[1747560616260,14.54118905,2517.2,2517.1,7.08797509]
[1747560617707,14.54118905,2517.2,2517.1,6.70720555]
[1747560621359,13.76218905,2517.2,2517.1,6.70720555]
[1747560621565,3.97266804,2517.2,2517.1,6.70720555]
[1747560622687,3.97266804,2517.2,2517.1,7.08773336]
[1747560624800,3.97266804,2517.2,2517.1,7.90213336]
[1747560626079,11.40443121,2517.4,2517.1,7.90213336]
[1747560626287,11.4044196,2517.4,2517.1,7.90213336]
[1747560626504,3.97252262,2517.3,2517.2,0.79021334]
[1747560626881,11.40443007,2517.4,2517.2,0.79021334]
[1747560627205,3.97251022,2517.3,2517.2,0.79021334]
[1747560627889,3.97251022,2517.3,2517.2,1.17074115]
[1747560629413,3.97251022,2517.3,2517.2,0.38052781]
[1747560631389,3.97266804,2517.2,2517.1,6.70720555]
[1747560633927,11.40442155,2517.4,2517.1,7.08760636]
[1747560634207,11.40442155,2517.4,2517.2,0.38040081]
[1747560634503,3.97251022,2517.3,2517.2,0.38040081]
[1747560634904,3.97243032,2517.4,2517.2,1.2157396]
[1747560635095,3.97243032,2517.4,2517.3,0.7901]
[1747560635502,3.97243032,2517.4,2517.3,1.17050081]
[1747560636185,3.97243032,2517.4,2517.3,0.38040081]
[1747560636387,5.50979345,2517.4,2517.3,0.38040081]
[1747560636987,5.50979345,2517.4,2517.1,6.70720555]
[1747560636988,3.97266804,2517.2,2517.1,6.70720555]
[1747560638284,3.97266804,2517.2,2517.1,7.08758566]
[1747560639301,11.40166804,2517.2,2517.1,7.08758566]
[1747560639502,14.27566828,2517.2,2517.1,7.08758566]
[1747560640902,14.27566828,2517.2,2517.1,6.70720555]
[1747560644790,6.84666828,2517.2,2517.1,6.70720555]
[1747560644990,14.27466828,2517.2,2517.1,6.70720555]
[1747560645195,13.48906828,2517.2,2517.1,6.70720555]
[1747560646131,6.06106828,2517.2,2517.1,6.70720555]
[1747560646308,11.40066804,2517.2,2517.1,6.70720555]
[1747560646508,3.97266804,2517.2,2517.1,6.70720555]
[1747560648835,4.73006804,2517.2,2517.1,6.70720555]
[1747560652817,3.97266804,2517.2,2517.1,6.70720555]
[1747560654327,18.83066804,2517.2,2517.1,6.70720555]
[1747560654527,6.72818197,2517.2,2517.1,6.70720555]
[1747560654728,11.40266804,2517.2,2517.1,6.70720555]
[1747560655411,3.97266804,2517.2,2517.1,6.70720555]
[1747560655606,3.97266804,2517.2,2517.1,7.50580555]
[1747560656056,3.97266804,2517.2,2517.1,7.88586315]
[1747560656245,3.97266804,2517.2,2517.1,7.08726315]
[1747560657431,3.97266804,2517.2,2517.1,6.70720555]
[1747560657833,11.40251022,2517.3,2517.2,0.7823]